bitfinex/quotes_ETHUSD_20260306
["timestamp","ask_amount","ask_price","bid_price","bid_amount"]
[1772763183883,1.66542486,2091.6,2090.9,1.65847965]
[1772763185927,0.47016765,2091.5,2090.9,1.65847965]
[1772763186127,0.47016765,2091.7,2090.9,1.65847965]
[1772763186423,0.47016765,2091.7,2091.0,0.46287682]
[1772763187000,0.002,2091.8,2091.0,0.46287682]
[1772763187221,0.47216765,2091.8,2091.0,0.46287682]
[1772763187523,0.002,2091.8,2091.0,0.46287682]
[1772763188536,0.002,2091.8,2091.2,0.46287682]
[1772763190104,0.002,2091.6,2091.2,0.46287682]
[1772763191353,0.002,2091.6,2091.3,1.6583055]
[1772763192202,0.002,2091.6,2091.4,0.46287682]
[1772763192635,0.002,2091.8,2091.4,0.46287682]
[1772763194032,0.002,2091.8,2091.4,1.65823828]
[1772763194236,0.002,2091.8,2091.4,0.46287682]
[1772763194408,0.47216765,2091.8,2091.1,0.001]
[1772763196014,0.47016765,2091.6,2091.1,0.001]
[1772763196241,0.47016765,2091.6,2090.5,0.46387682]
[1772763196431,0.47016765,2091.6,2090.5,1.19687301]
[1772763198242,0.47016765,2091.4,2090.5,1.19687301]
[1772763199109,0.47016765,2091.4,2090.5,0.001]
[1772763199315,0.47016765,2091.2,2090.5,0.001]
[1772763199513,0.47016765,2091.2,2090.5,0.46387682]
[1772763200125,0.47016765,2091.2,2090.6,1.19582894]
[1772763200450,0.47016765,2091.2,2090.6,1.65870576]
[1772763200638,1.66566279,2091.2,2090.6,1.65870576]
[1772763201040,0.47016765,2091.2,2090.6,1.65870576]
[1772763201226,0.47016765,2091.2,2090.7,0.0260289]
[1772763201954,1.19541415,2091.4,2090.7,0.48890572]
[1772763202356,1.6655036,2091.5,2090.8,1.65859137]
[1772763202556,5.25109159,2091.7,2090.9,0.48890323]
[1772763202743,0.37589226,2091.6,2090.9,0.48890323]
[1772763202947,5.25109159,2091.7,2090.9,0.48890323]
[1772763203642,5.25109159,2091.7,2090.9,0.46287682]
[1772763203848,0.47016765,2091.6,2090.7,0.001]
[1772763204045,0.47016765,2091.4,2090.7,0.001]
[1772763204228,0.47216765,2091.4,2090.7,0.001]
[1772763204429,1.66559633,2091.3,2090.7,0.001]
[1772763205134,0.002,2091.4,2090.7,0.46387682]
[1772763205329,0.002,2091.6,2090.8,0.46287682]
[1772763206528,0.002,2091.6,2091.0,0.46287682]
[1772763207730,0.002,2091.6,2091.0,2.6751798]
[1772763207936,0.002,2091.6,2091.1,0.46287682]
[1772763208568,0.002,2091.6,2091.3,0.47266735]
[1772763208858,0.002,2091.8,2091.3,0.47266735]
[1772763209041,0.002,2091.8,2091.2,4.72878882]
[1772763209257,0.002,2091.8,2091.6,0.47266735]
[1772763209837,1e-08,2092.0,2091.7,0.39607351]
[1772763210047,0.46632607,2092.4,2091.7,0.39607351]
[1772763210247,1.66104328,2092.6,2091.7,0.39607351]
[1772763210539,1.66095628,2092.7,2091.9,0.49207368]
[1772763210739,0.46632607,2092.6,2091.9,0.49207368]
[1772763210972,0.46632607,2092.6,2091.8,1.19514293]
[1772763211138,0.46632607,2092.6,2091.8,1.68721661]
[1772763212145,0.46632607,2092.6,2091.8,0.49207368]
[1772763212461,0.46632607,2092.4,2091.6,1.19525721]
[1772763212762,0.46632607,2092.4,2091.5,1.6873509]
[1772763213963,0.46632607,2092.4,2091.6,0.49207368]
[1772763214672,0.46632607,2092.2,2091.6,0.49207368]
[1772763214879,1.19485733,2092.3,2091.6,1.19525314]
[1772763215077,0.46632607,2092.3,2091.6,1.19525314]
[1772763215463,0.46632607,2092.3,2091.5,1.68734875]
[1772763215661,0.46632607,2092.3,2091.6,0.49207368]
[1772763216279,1.19478534,2092.5,2091.6,0.49207368]
[1772763216580,1.66111141,2092.5,2091.6,0.49207368]
[1772763216781,1.66111141,2092.5,2091.7,1.68727375]
[1772763217162,1.66095501,2092.7,2091.8,0.49207368]
[1772763217364,0.002,2092.3,2091.8,0.49207368]
[1772763219063,0.002,2092.3,2091.9,1.1950858]
[1772763219478,0.002,2092.3,2092.0,0.49207368]
[1772763219787,0.002,2092.6,2092.0,0.49207368]
[1772763220294,0.1623025,2092.8,2092.2,0.49207368]
[1772763220454,0.46632607,2093.4,2092.3,0.49207368]
[1772763220658,0.46632607,2093.2,2092.3,1.322]
[1772763221184,2.06022068,2093.5,2092.1,1.68704523]
[1772763221185,0.46632607,2092.9,2092.1,1.68704523]
[1772763221395,0.1623025,2092.8,2092.2,0.49207368]
[1772763221555,0.62862857,2092.9,2092.2,0.49207368]
[1772763221872,0.46632607,2092.7,2092.0,1.19498622]
[1772763223187,1.19468513,2092.7,2092.0,1.19498622]
[1772763223487,0.62862857,2092.6,2092.0,1.19498622]
[1772763224398,0.1623025,2092.5,2092.0,1.19498622]
[1772763224703,0.62862857,2092.5,2092.0,1.19498622]
[1772763224903,0.62862857,2092.5,2091.9,4.78016718]
[1772763225067,0.46632607,2092.2,2091.5,1.19527788]
[1772763225769,0.46632607,2092.0,2091.4,1.324]
[1772763226003,0.46632607,2092.0,2091.2,1.19543515]
[1772763226325,0.46632607,2091.8,2091.2,1.19543515]
[1772763226502,0.46632607,2091.8,2090.9,1.324]
[1772763226503,0.46632607,2091.8,2091.0,1.19554609]
[1772763226715,0.46632607,2091.6,2090.9,2.51961763]
[1772763227006,0.46632607,2091.4,2090.9,1.324]
[1772763227175,1.19542868,2091.3,2090.9,1.324]
[1772763227374,0.46632607,2091.2,2090.7,0.001]
[1772763227901,0.46632607,2091.5,2090.7,1.19676918]
[1772763228203,0.1623025,2091.5,2090.8,0.49207368]
[1772763228405,0.46632607,2092.1,2090.8,0.49207368]
[1772763228608,1.66121881,2092.3,2090.9,0.14948499]
[1772763228911,1.66121881,2092.3,2091.1,0.49207368]
[1772763229203,0.1623025,2092.2,2091.3,0.49207368]
[1772763229402,0.1623025,2092.2,2091.3,0.49307368]
[1772763229711,0.1623025,2092.1,2091.3,0.49307368]
[1772763229881,0.46632607,2092.0,2091.3,0.49307368]
[1772763230105,0.46632607,2092.0,2091.3,0.001]
[1772763230704,1.19493051,2092.2,2091.3,0.001]
[1772763230705,0.62862857,2091.9,2091.3,0.001]
[1772763230919,0.46632607,2091.9,2091.3,0.001]
[1772763231637,0.46632607,2092.2,2091.3,0.49307368]
[1772763231811,0.1623025,2092.0,2091.3,0.49307368]
[1772763232124,1.66124411,2092.2,2091.3,0.49307368]
[1772763232418,0.1623025,2092.1,2091.3,0.49307368]
[1772763232623,1.35716026,2092.3,2091.3,0.49307368]
[1772763233018,0.1623025,2092.2,2091.5,0.49207368]
[1772763233224,0.1623025,2092.2,2091.6,1.19525721]
[1772763233703,0.1623025,2092.1,2091.6,1.19525721]
[1772763234607,0.1623025,2092.1,2091.6,1.68733089]
[1772763235019,0.1623025,2092.1,2091.6,1.19525721]
[1772763235321,0.1623025,2092.1,2091.4,1.19537152]
[1772763235322,1.35729304,2092.1,2091.4,1.19537152]
[1772763235506,0.1623025,2092.1,2091.4,1.19537152]
[1772763235702,1.35728411,2092.1,2091.4,1.19537152]
[1772763235903,0.46632607,2092.0,2091.4,1.19537152]
[1772763236727,0.1623025,2091.9,2091.4,1.6874452]
[1772763236927,0.1623025,2092.1,2091.4,1.19537152]
[1772763237129,0.46632607,2092.3,2091.4,1.6874452]
[1772763237313,1.66118465,2092.3,2091.4,1.6874452]
[1772763237502,0.46632607,2092.3,2091.4,1.6874452]
[1772763237911,0.002,2092.4,2091.5,0.49207368]
[1772763238440,0.002,2092.4,2091.6,0.49207368]
[1772763239339,0.002,2092.4,2091.8,0.49207368]
[1772763239909,0.002,2092.6,2091.8,0.46367839]
[1772763240435,0.50175191,2092.6,2091.9,1.328]
[1772763241413,0.49975191,2092.5,2092.0,1.19502868]
[1772763241943,0.49975191,2092.5,2091.9,2.52303975]
[1772763243509,0.002,2092.6,2091.9,2.98671814]
[1772763245478,0.002,2092.6,2092.2,0.46367839]
[1772763246593,0.50175191,2092.6,2092.0,1.19499066]
[1772763246877,0.50175191,2092.6,2091.7,2.52420004]
[1772763247267,0.50175191,2092.6,2091.7,2.52418993]
[1772763247471,0.49975191,2092.4,2091.7,1.329]
[1772763247672,1.19474313,2092.5,2091.3,4.28467839]
[1772763247673,0.49975191,2092.2,2091.3,2.52641863]
[1772763248051,0.49975191,2092.2,2091.3,1.331]
[1772763248354,0.49975191,2092.2,2091.3,2.52641339]
[1772763248572,0.49975191,2092.2,2091.3,1.19642841]
[1772763249392,0.49975191,2092.2,2091.3,1.19642818]
[1772763249598,0.49975191,2092.2,2091.3,0.001]
[1772763249896,0.49975191,2092.0,2091.3,0.001]
[1772763250794,0.49975191,2091.8,2091.3,0.001]
[1772763251992,0.49975191,2091.6,2091.3,0.001]
[1772763252668,0.49975191,2091.6,2091.0,0.001]
[1772763253967,0.49975191,2091.4,2091.0,0.001]
[1772763255966,0.49975191,2091.4,2091.2,0.001]
[1772763256173,0.49975191,2091.2,2091.0,0.001]
[1772763258197,1.69506627,2091.5,2091.0,0.001]
[1772763262390,4.78067536,2091.8,2091.0,0.001]
[1772763262391,0.49975191,2091.7,2091.0,0.001]
[1772763264934,1.69496956,2091.7,2091.0,0.46467839]
[1772763265713,1.69496956,2091.7,2091.0,0.001]
[1772763266801,1.19531436,2091.5,2091.0,0.001]
[1772763267001,0.49975191,2091.4,2091.0,0.001]
[1772763268727,0.49975191,2091.4,2091.2,0.001]
[1772763269323,1.19542868,2091.3,2091.2,0.001]
[1772763271031,1.19740762,2091.4,2091.2,0.001]
[1772763273231,0.48114281,2091.4,2091.2,0.001]
[1772763273425,0.48114281,2091.4,2090.5,1.69615728]
[1772763273626,0.48114281,2091.4,2090.5,0.001]
[1772763274639,0.47914281,2091.2,2090.1,0.27837708]
[1772763274808,0.47914281,2091.0,2090.0,0.49931085]
[1772763275005,1.19737857,2091.4,2090.2,0.49931085]
[1772763275226,0.002,2091.4,2090.2,0.49931085]
[1772763275712,1.67652607,2091.4,2090.2,0.49931085]
[1772763276126,0.47914281,2091.3,2090.3,0.49931085]
[1772763276437,0.47914281,2091.2,2090.3,0.49931085]
[1772763277135,1.19554301,2091.1,2090.4,1.19594336]
[1772763277322,1.19554301,2091.1,2090.4,1.69525421]
[1772763277519,0.002,2091.4,2090.5,0.49931085]
[1772763278566,0.002,2091.4,2090.7,0.49931085]
[1772763278708,0.002,2091.4,2090.8,0.49931085]
[1772763279138,0.002,2091.4,2090.9,1.69496822]
[1772763279342,0.002,2091.4,2091.0,0.49931085]
[1772763279848,0.002,2091.7,2091.0,0.49931085]
[1772763282035,0.002,2091.7,2091.1,1.69485386]
[1772763282431,0.002,2091.7,2091.2,0.49931085]
[1772763284252,0.002,2091.4,2091.3,1.19542868]
[1772763284550,0.002,2091.7,2091.3,1.19542868]
[1772763286718,0.48114281,2091.7,2090.9,0.49931085]
[1772763286931,0.48114281,2091.7,2090.9,1.69496822]
[1772763287643,0.48114281,2091.7,2091.0,0.49931085]
[1772763289048,1.67637486,2091.7,2091.0,1.69487846]
[1772763289346,1.67637486,2091.7,2090.9,4.78247105]
[1772763289347,0.47914281,2091.6,2090.8,1.19571455]
[1772763289547,0.47914281,2091.4,2090.8,1.19571455]
[1772763289746,0.47914281,2091.4,2090.7,2.51473916]
[1772763289945,0.47914281,2091.4,2090.7,1.19573916]
[1772763291051,1.67457149,2091.3,2090.6,4.7833143]
[1772763291248,0.47914281,2091.3,2090.6,4.7833143]
[1772763291432,0.47914281,2091.3,2090.6,1.19582894]
[1772763291631,0.47914281,2091.3,2090.6,1.69513979]
[1772763293756,1.67457909,2091.3,2090.6,1.69513979]
[1772763293967,0.47914281,2091.3,2090.6,1.69513979]
[1772763294257,1.67457547,2091.3,2090.6,1.69513979]
[1772763294658,1.67457944,2091.3,2090.6,1.69513979]
[1772763295349,0.48114281,2091.7,2090.7,0.49931085]
[1772763295545,0.37772709,2091.6,2090.9,0.49931085]
[1772763295854,0.002,2091.7,2091.1,0.49931085]
[1772763296352,0.002,2091.5,2091.1,0.49931085]
[1772763297826,0.002,2091.7,2091.0,1.19560019]
[1772763297827,0.002,2091.7,2091.2,0.49931085]
[1772763298635,0.48114281,2091.7,2091.0,4.31931085]
[1772763299934,0.49901273,2091.6,2091.0,1.69487778]
[1772763300334,0.49901273,2091.6,2090.8,6.82969875]
[1772763300833,0.002,2091.7,2090.9,0.4930183]
[1772763301033,1.69621573,2091.7,2090.9,0.4930183]
[1772763301356,0.002,2091.7,2090.9,0.4930183]
[1772763301990,0.50101273,2091.7,2090.9,1.68863221]
[1772763302473,0.002,2091.7,2091.0,0.4930183]
[1772763303983,0.002,2091.7,2091.1,1.68856131]
[1772763304658,0.002,2091.7,2091.2,0.4930183]
[1772763304850,0.50101273,2091.7,2091.1,1.19554301]
[1772763305386,0.50101273,2091.7,2091.0,1.19557027]
[1772763305587,0.49901273,2091.5,2090.8,6.33667833]
[1772763305890,0.49901273,2091.5,2090.8,2.51667833]
[1772763306587,0.49901273,2091.3,2090.8,2.51670561]
[1772763307710,0.49901273,2091.5,2090.8,3.00972391]
[1772763308284,0.49901273,2091.5,2090.8,2.51670561]
[1772763308501,0.49901273,2091.3,2090.8,2.51670561]
[1772763308855,0.49901273,2091.3,2090.9,0.001]
[1772763310273,0.50101273,2091.5,2090.9,0.001]
[1772763318106,0.002,2091.7,2090.9,0.001]
[1772763318107,0.002,2091.7,2091.0,0.4930183]
[1772763319003,0.002,2091.7,2091.1,0.4930183]
[1772763319907,0.002,2091.7,2091.3,0.4930183]
[1772763320111,0.002,2091.7,2091.2,1.19548584]
[1772763320325,0.50101273,2091.7,2091.2,1.19548584]
[1772763320527,0.50101273,2091.7,2091.0,4.78217379]
[1772763320731,0.50101273,2091.7,2091.0,1.19560019]
[1772763321026,0.50101273,2091.7,2090.9,1.19662966]
[1772763321611,0.50101273,2091.7,2091.0,0.4930183]
[1772763321811,1.69622317,2091.7,2091.1,1.19654301]
[1772763322016,0.50101273,2091.5,2091.1,1.19654301]
[1772763322219,0.50101273,2091.5,2091.1,0.001]
[1772763323235,1.56959049,2091.7,2091.2,0.4930183]
[1772763323611,0.37438622,2091.7,2091.2,0.4930183]
[1772763323811,0.37238622,2091.6,2091.1,0.001]
[1772763324234,0.002,2091.7,2091.1,0.4940183]
[1772763326139,0.002,2091.7,2091.2,1.68850414]
[1772763327032,0.002,2091.7,2091.3,0.4930183]
[1772763328539,0.002,2091.7,2091.4,1.19537152]
[1772763329241,0.37438622,2091.7,2091.4,1.19537152]
[1772763329739,0.37438622,2091.7,2091.3,1.19538359]
[1772763330338,0.37438622,2091.7,2091.2,1.19545352]
[1772763330635,0.37438622,2091.7,2091.1,0.001]
[1772763330834,0.37238622,2091.6,2091.1,0.001]
[1772763331843,0.37238622,2091.6,2091.1,0.45509199]
[1772763332944,0.37238622,2091.5,2091.1,1.19653843]
[1772763333439,0.37238622,2091.5,2091.1,0.001]
[1772763333632,0.37238622,2091.5,2091.1,1.19653922]
[1772763334444,0.002,2091.4,2091.1,1.19653922]
[1772763334819,0.002,2091.4,2091.1,0.001]
[1772763335340,0.002,2091.4,2091.1,0.45509199]
[1772763336230,0.002,2091.4,2091.1,0.001]
[1772763337141,0.37438622,2091.4,2090.9,1.19665737]
[1772763338130,0.37438622,2091.4,2090.9,1.65074936]
[1772763338933,0.37138622,2091.3,2090.6,1.19681689]
[1772763339139,0.37138622,2091.3,2090.7,0.45409199]
[1772763340962,0.37138622,2091.3,2090.8,1.19571455]
[1772763341521,0.002,2091.4,2090.8,1.64980654]
[1772763341762,0.002,2091.4,2090.9,0.45409199]
[1772763343163,0.002,2091.4,2091.0,1.64969218]
[1772763343327,0.002,2091.4,2091.1,1.334]
[1772763343526,0.002,2091.4,2091.1,1.78809199]
[1772763344650,0.002,2091.4,2091.1,1.334]
[1772763345057,0.002,2091.4,2091.2,1.19548584]
[1772763346224,0.002,2091.4,2090.7,0.45409199]
[1772763346225,0.37338622,2091.4,2090.7,0.45409199]
[1772763346430,0.37338622,2091.4,2090.6,1.19682544]
[1772763347228,0.37138622,2091.2,2090.6,1.19682544]
[1772763347423,1.56879144,2091.4,2090.7,0.45409199]
[1772763347658,1.56878432,2091.4,2090.7,0.45409199]
[1772763347859,0.37138622,2091.3,2090.8,0.001]
[1772763348027,0.002,2091.4,2090.8,1.79109199]
[1772763348360,0.002,2091.4,2090.9,0.45409199]
[1772763349364,0.37338622,2091.4,2090.9,1.19565737]
[1772763349528,1.19737226,2091.4,2091.0,1.337]
[1772763349734,0.37138622,2091.3,2091.0,1.337]
[1772763351961,1.56686135,2091.3,2091.0,1.337]
[1772763352164,0.37138622,2091.3,2091.0,1.337]
[1772763353476,1.19739765,2091.4,2091.0,1.337]
[1772763353477,0.002,2091.4,2091.0,2.53259427]
[1772763354438,0.002,2091.4,2091.0,2.98668626]
[1772763354644,0.002,2091.6,2091.0,2.98668626]
[1772763354645,0.002,2091.6,2091.1,0.45409199]
[1772763355335,1.56864417,2091.6,2091.1,0.45409199]
[1772763355672,0.37138622,2091.5,2091.0,2.53258236]
[1772763355869,0.37138622,2091.5,2091.0,1.337]
[1772763356167,1.5667519,2091.5,2091.0,2.53259848]
[1772763356372,0.002,2091.6,2091.1,0.45409199]
[1772763358351,0.002,2091.6,2091.2,1.19548584]
[1772763358572,0.002,2091.6,2091.3,0.45409199]
[1772763359775,0.002,2091.4,2091.3,0.45409199]
[1772763360283,0.002,2091.4,2091.3,1.64952067]
[1772763360583,0.002,2091.6,2091.4,0.45290631]
[1772763360884,0.002,2091.6,2091.5,1.34]
[1772763361374,0.002,2091.9,2091.6,0.45290631]
[1772763361877,0.37338622,2092.4,2091.6,0.45290631]
[1772763362075,0.002,2092.2,2091.6,0.45290631]
[1772763362377,0.002,2092.2,2091.8,0.45290631]
[1772763364460,0.002,2092.2,2091.8,1.64801754]
[1772763365067,0.002,2092.1,2091.9,0.45290631]
[1772763365283,0.002,2092.7,2092.0,1.341]
[1772763365577,0.32707269,2092.8,2092.1,0.45290631]
[1772763365779,0.002,2092.7,2092.1,0.45290631]
[1772763366169,0.37538622,2092.6,2092.0,1.341]
[1772763366369,0.37338622,2092.6,2092.0,1.341]
[1772763366678,0.002,2092.5,2092.1,1.19497155]
[1772763367250,0.32538622,2092.6,2092.1,1.19497155]
[1772763367768,0.32538622,2092.6,2092.0,1.341]
[1772763368677,1.52012935,2092.5,2092.0,2.53601936]
[1772763368878,1.52012935,2092.5,2091.8,0.45290631]
[1772763369082,0.32538622,2092.4,2091.6,5.23380628]
[1772763369870,0.32538622,2092.4,2091.6,1.19525721]
[1772763370282,0.32538622,2092.4,2091.5,1.343]
[1772763370472,1.19485733,2092.3,2091.5,1.19531436]
[1772763370788,1.19485733,2092.3,2091.6,0.45290631]
[1772763370789,1.52024355,2092.3,2091.6,0.45290631]
[1772763371593,0.32538622,2092.3,2091.8,0.001]
[1772763372096,0.32738622,2092.2,2091.8,0.001]
[1772763372691,1.52234799,2092.2,2091.8,0.001]
[1772763374358,0.32538622,2092.1,2091.8,0.001]
[1772763375979,0.32538622,2092.0,2091.8,0.001]
[1772763376797,1.19497547,2092.1,2091.8,0.001]
[1772763376999,1.52036169,2092.1,2091.8,0.001]
[1772763377196,0.32538622,2092.0,2091.8,0.001]
[1772763377373,0.32538622,2092.0,2091.5,0.001]
[1772763378272,1.52043253,2092.0,2091.5,0.001]
[1772763378474,1.19692678,2092.2,2091.6,0.45290631]
[1772763379368,1.19691454,2092.2,2091.6,0.45290631]
[1772763379685,0.002,2092.2,2091.6,0.45290631]
[1772763380170,0.002,2092.2,2091.8,0.45290631]
[1772763382185,0.002,2092.2,2091.9,1.1950858]
[1772763382392,0.002,2092.2,2091.8,0.45290631]
[1772763384468,0.002,2092.2,2091.9,1.1950858]
[1772763384796,0.002,2092.2,2092.0,0.001]
[1772763388472,0.32638622,2092.2,2092.0,0.001]
[1772763388676,1.52130788,2092.2,2092.0,0.001]
[1772763390381,0.32438622,2092.1,2092.0,0.001]
[1772763392302,0.32438622,2092.0,2091.8,0.001]
[1772763392622,0.32438622,2091.6,2090.8,0.001]
[1772763392907,0.68641795,2091.5,2090.8,1.67657359]
[1772763393107,0.68641795,2091.4,2090.9,0.001]
[1772763393312,0.32438622,2091.2,2090.8,0.002]
[1772763393913,0.68602019,2091.1,2090.8,0.001]
[1772763394079,0.32438622,2091.1,2090.8,0.002]
[1772763394279,1.19560019,2091.0,2090.8,0.002]
[1772763395007,0.32438622,2090.9,2090.6,0.001]
[1772763396510,1.19560019,2091.0,2090.6,0.002]
[1772763396814,1.19560019,2091.0,2090.7,0.001]
[1772763397021,0.32438622,2090.9,2090.6,0.002]
[1772763397690,0.32438622,2090.9,2090.8,0.001]
[1772763397886,0.32438622,2090.9,2090.6,0.002]
[1772763398284,1.19571455,2090.8,2090.6,0.001]
[1772763398480,1.52008392,2090.9,2090.6,0.001]
[1772763398813,0.32438622,2090.9,2090.6,0.002]
[1772763399019,1.51997378,2091.1,2090.7,0.001]
[1772763400807,0.32438622,2091.0,2090.7,0.001]
[1772763400987,0.32438622,2091.0,2090.5,0.001]
[1772763402512,0.32338622,2090.8,2090.5,0.001]
[1772763402826,0.32338622,2090.5,2090.3,0.001]
[1772763403118,0.32338622,2090.5,2089.9,0.001]
[1772763403293,1.439,2090.4,2089.9,0.001]
[1772763403494,1.76238622,2090.4,2089.9,0.001]
[1772763404298,0.32338622,2090.3,2089.9,0.001]
[1772763404500,1.19588615,2090.5,2089.9,0.48086254]
[1772763404812,0.32338622,2089.3,2088.0,0.47986254]
[1772763405112,0.32338622,2089.1,2088.2,0.47986254]
[1772763405311,0.32338622,2089.1,2087.9,0.47986254]
[1772763406120,0.32338622,2089.1,2087.8,1.19943251]
[1772763406121,0.32338622,2088.8,2088.0,0.002]
[1772763406415,0.32338622,2088.8,2087.6,0.48086254]
[1772763406416,0.32338622,2088.7,2087.6,0.48086254]
[1772763406713,0.32338622,2088.5,2087.7,0.002]
[1772763409020,1.5204749,2088.4,2087.7,0.002]
[1772763409412,1.19708868,2088.4,2087.7,0.48186254]
[1772763409608,4.7879096,2088.6,2087.9,0.001]
[1772763410013,5.11129582,2088.6,2087.9,0.001]
[1772763410460,5.11129582,2088.6,2088.0,0.002]
[1772763411993,1.19685944,2088.8,2087.9,0.48086254]
[1772763412193,1.52023106,2088.9,2088.0,0.48186254]
[1772763412418,0.32338622,2088.8,2088.0,0.48186254]
[1772763413203,1.19691674,2088.7,2088.1,1.19726066]
[1772763413398,1.19674485,2089.0,2088.2,0.47986254]
[1772763413598,1.19674485,2089.0,2088.2,0.48186254]
[1772763415305,4.78659767,2089.2,2088.4,0.47986254]
[1772763415506,4.7864317,2089.3,2088.4,0.47986254]
[1772763415830,4.7864317,2089.3,2088.6,0.47986254]
[1772763416031,1.19655936,2089.4,2088.6,0.47986254]
[1772763416202,1.19655936,2089.4,2088.8,0.47986254]
[1772763416725,4.78576886,2089.6,2088.9,0.002]
[1772763417030,4.78576886,2089.6,2088.9,0.48186254]
[1772763417726,4.78576886,2089.6,2089.0,0.002]
[1772763418032,4.78525331,2089.8,2089.0,0.48186254]
[1772763419916,4.78525331,2089.8,2089.0,1.67859273]
[1772763420110,4.78525331,2089.8,2089.1,0.49328089]
[1772763420451,1.19628672,2089.8,2089.1,0.49328089]
[1772763421119,0.002,2089.7,2089.3,0.49328089]
[1772763421521,0.002,2089.7,2089.4,0.49528089]
[1772763421720,0.002,2089.7,2089.4,0.49328089]
[1772763421920,0.002,2089.7,2089.4,1.6897897]
[1772763422131,0.002,2089.7,2089.4,0.49328089]
[1772763424540,0.002,2089.7,2089.5,0.49528089]
[1772763424736,0.002,2089.9,2089.5,0.49528089]
[1772763424911,0.002,2089.9,2089.6,0.49528089]
[1772763425239,0.002,2089.9,2089.7,0.002]
[1772763425937,0.32538622,2089.8,2089.0,0.49328089]
[1772763426109,0.002,2089.9,2089.0,0.49328089]
[1772763426434,0.002,2089.9,2089.2,0.49328089]
[1772763426610,0.002,2089.9,2089.3,0.49528089]
[1772763428333,0.99817224,2090.0,2089.3,0.49328089]
[1772763428535,0.99817224,2090.0,2089.4,0.002]
[1772763431038,0.32538622,2089.9,2089.4,0.002]
[1772763432846,1.19611501,2090.1,2089.4,0.49528089]
[1772763433644,1.19611501,2090.1,2089.6,0.001]
[1772763434016,0.002,2089.8,2089.6,0.49428089]
[1772763435118,0.002,2089.8,2089.7,0.002]
[1772763435339,0.002,2090.0,2089.7,0.49328089]
[1772763435519,0.002,2090.0,2089.8,0.002]
[1772763440227,0.32738622,2090.0,2089.2,1e-08]
[1772763440427,0.46930366,2089.8,2088.8,0.49328089]
[1772763440738,0.46930366,2089.6,2088.3,1.82028089]
[1772763440940,0.46930366,2089.6,2088.3,0.49328089]
[1772763440941,0.46930366,2089.3,2088.3,0.49328089]
[1772763441128,0.46930366,2089.1,2088.3,0.49328089]
[1772763441336,1.19674485,2089.0,2088.4,0.49328089]
[1772763441848,0.46930366,2089.3,2088.4,0.49328089]
[1772763442021,1.19660468,2089.3,2088.4,0.49328089]
[1772763443234,3.22028256,2089.2,2088.4,0.49328089]
[1772763443437,1.19668756,2089.1,2088.6,0.49328089]
[1772763443748,1.19651574,2089.4,2088.6,0.49328089]
[1772763444035,3.22008627,2089.3,2088.6,0.49328089]
[1772763444230,1.19651574,2089.4,2088.6,0.49328089]
[1772763444231,3.22008627,2089.2,2088.6,0.49328089]
[1772763444550,1.19651574,2089.4,2088.6,0.49328089]
[1772763444751,3.22175629,2089.3,2088.6,0.49328089]
[1772763444923,3.22175629,2089.2,2088.6,0.49328089]
[1772763445123,1.19651574,2089.4,2088.6,0.49328089]
[1772763445350,3.22285362,2089.3,2088.6,0.49328089]
[1772763445650,4.41951103,2089.2,2088.8,0.49328089]
[1772763445833,1.19665741,2089.2,2088.8,0.49328089]
[1772763446724,1.19665741,2089.2,2088.8,0.49428089]
[1772763447128,1.66596107,2089.2,2088.8,0.001]
[1772763449541,4.78652115,2089.4,2088.8,0.45936715]
[1772763449542,4.78618938,2089.4,2088.8,0.45936715]
[1772763449859,1.19650395,2089.5,2088.8,0.45936715]
[1772763450068,3.22150556,2089.4,2088.8,0.45936715]
[1772763450253,1.19650395,2089.5,2088.8,0.45936715]
[1772763450566,3.22151372,2089.4,2088.8,0.45936715]
[1772763450731,1.19650395,2089.5,2088.8,0.45936715]
[1772763450932,0.36505514,2089.4,2088.8,0.45936715]
[1772763451143,1.19650395,2089.5,2088.8,0.45936715]
[1772763451351,1.68401587,2089.5,2088.8,0.45936715]
[1772763451532,0.36501158,2089.4,2088.8,0.45936715]
[1772763451726,1.68401587,2089.5,2088.8,1.65622593]
[1772763452064,1.68401587,2089.5,2088.9,0.45417628]
[1772763452368,1.19650395,2089.5,2088.9,0.45417628]
[1772763454955,4.78571713,2089.6,2088.9,1.650978]
[1772763455150,3.22091126,2089.5,2088.9,1.19680172]
[1772763455328,4.78571713,2089.6,2088.9,1.650978]
[1772763455529,3.22127835,2089.5,2088.9,1.650978]
[1772763455730,4.78571713,2089.6,2088.9,1.650978]
[1772763455955,3.22127835,2089.5,2089.0,0.45417628]
[1772763456135,4.78571713,2089.6,2089.0,0.45417628]
[1772763456337,3.22128606,2089.5,2089.0,0.45417628]
[1772763456537,4.78571713,2089.6,2089.0,0.45417628]
[1772763456740,3.22128754,2089.5,2089.0,0.45417628]
[1772763457058,1.19640122,2089.6,2089.1,0.45417628]
[1772763459134,1.19640122,2089.6,2089.2,0.45417628]
[1772763459953,0.002,2089.3,2089.2,0.45417628]
[1772763461352,0.002,2089.3,2089.0,0.45517628]
[1772763461561,0.48751192,2089.0,2087.7,0.45417628]
[1772763461736,2.27262348,2089.1,2087.9,0.45517628]
[1772763461737,0.48751192,2088.7,2087.9,0.45517628]
[1772763462060,0.48751192,2088.5,2087.5,1.19757714]
[1772763462234,1.456,2088.7,2087.5,0.45417628]
[1772763462235,0.48751192,2088.3,2087.5,0.45417628]
[1772763462835,0.48751192,2088.3,2087.6,0.45517628]
[1772763463067,0.48751192,2088.6,2087.7,0.45417628]
[1772763463274,1.19708868,2088.4,2087.7,0.45417628]
[1772763463651,1.19708868,2088.4,2087.6,1.19850538]
[1772763463652,0.48751192,2088.3,2087.6,0.001]
[1772763463855,0.48751192,2088.3,2087.6,0.45517628]
[1772763464570,0.48751192,2088.3,2087.6,1.65272147]
[1772763464736,0.48751192,2088.3,2087.6,0.45517628]
[1772763465165,1.19720333,2088.2,2087.6,0.45517628]
[1772763468350,0.48751192,2088.5,2087.6,1.65271952]
[1772763468546,0.48751192,2088.5,2087.7,0.45417628]
[1772763470505,1.19691674,2088.7,2087.9,0.45417628]
[1772763472166,1.19678486,2089.0,2088.2,0.45417628]
[1772763472366,4.78692072,2089.1,2088.4,0.45417628]
[1772763472538,0.002,2088.7,2088.4,0.45417628]
[1772763474545,0.002,2088.7,2088.5,1.19703136]